fUSD/lending_fUSD_20240216
["ID","MTS","AMOUNT","RATE_DAILY","PERIOD"]
[314182850,1708050640186,-500.0,0.0003863,7]
[314182851,1708050640196,-500.0,0.0003863,7]
[314182852,1708050640205,-500.0,0.0003863,7]
[314182853,1708050640214,-583.25,0.0003863,7]
[314182854,1708050640223,-500.0,0.0003863,7]
[314182855,1708050640233,-561.63568545,0.0003863,7]
[314182856,1708050640242,-500.0,0.0003863,7]
[314182857,1708050640251,-500.0,0.0003863,7]
[314182858,1708050640260,-500.0,0.0003863,7]
[314182859,1708050640270,-575.41845283,0.0003863,7]
[314182860,1708050640279,-500.0,0.0003863,7]
[314182861,1708050640288,-500.0,0.0003863,7]
[314182862,1708050640297,-500.0,0.0003863,7]
[314182863,1708050640306,-1327.62,0.0003863,7]
[314182864,1708050640315,-576.41785819,0.0003863,7]
[314182865,1708050640325,-500.0,0.0003863,7]
[314182866,1708050640337,-576.21698247,0.0003863,7]
[314182867,1708050640347,-589.12256117,0.0003863,7]
[314182868,1708050640357,-500.0,0.0003863,7]
[314182869,1708050640366,-500.0,0.0003863,7]
[314182870,1708050640375,-500.0,0.0003863,7]
[314182871,1708050640384,-630.51779054,0.0003863,7]
[314182872,1708050640394,-500.0,0.0003863,7]
[314182873,1708050640403,-500.0,0.0003863,7]
[314182874,1708050640413,-500.0,0.0003863,7]
[314182875,1708050640422,-500.0,0.0003863,7]
[314182876,1708050640431,-574.46,0.0003863,7]
[314182877,1708050640441,-500.0,0.0003863,7]
[314182878,1708050640450,-500.0,0.0003863,7]
[314182879,1708050640459,-353.07809425,0.0003863,7]
[314182880,1708050640468,-521.88,0.0003863,7]
[314182881,1708050640477,-500.0,0.0003863,7]
[314182882,1708050640486,-500.0,0.0003863,7]
[314182883,1708050640496,-530.62392186,0.0003863,7]
[314182884,1708050640506,-500.0,0.0003863,7]
[314182885,1708050640515,-500.0,0.0003863,7]
[314182886,1708050640525,-568.00669328,0.0003863,7]
[314182887,1708050640534,-500.0,0.0003863,7]
[314182888,1708050640543,-500.0,0.0003863,7]
[314182889,1708050640552,-678.37,0.0003863,7]
[314182890,1708050640561,-594.19727419,0.0003863,7]
[314182891,1708050640570,-500.0,0.0003863,7]
[314182892,1708050640579,-596.00071743,0.0003863,7]
[314182893,1708050640589,-1540.41,0.0003863,7]
[314182894,1708050640598,-536.41544918,0.0003863,7]
[314182895,1708050640610,-500.0,0.0003863,7]
[314182896,1708050640619,-500.0,0.0003863,7]
[314182897,1708050640628,-7593.28,0.0003863,7]
[314182898,1708050640638,-500.0,0.0003863,7]
[314182899,1708050640647,-500.0,0.0003863,7]
[314182900,1708050640656,-500.0,0.0003863,7]
[314182901,1708050640666,-500.0,0.0003863,7]
[314182902,1708050640677,-500.0,0.0003863,7]
[314182903,1708050640686,-500.0,0.0003863,7]
[314182904,1708050640696,-500.0,0.0003863,7]
[314182905,1708050640705,-601.07,0.0003863,7]
[314182906,1708050640716,-500.0,0.0003863,7]
[314182907,1708050640726,-583.72,0.0003863,7]
[314182908,1708050640736,-569.42022458,0.0003863,7]
[314182909,1708050640745,-169.75369119,0.0003863,7]
[314182910,1708050640754,-604.58089464,0.0003863,7]
[314182911,1708050640764,-500.0,0.0003863,7]
[314182912,1708050640773,-729.85,0.0003863,7]
[314182913,1708050640782,-584.68052669,0.0003863,7]
[314182914,1708050640792,-500.0,0.0003863,7]
[314182915,1708050640802,-500.0,0.0003863,7]
[314182916,1708050640811,-500.0,0.0003863,7]
[314182917,1708050640821,-500.0,0.0003863,7]
[314182918,1708050640831,-586.42154646,0.0003863,7]
[314182919,1708050640841,-602.43516096,0.0003863,7]
[314182920,1708050640850,-500.0,0.0003863,7]
[314182921,1708050640859,-500.0,0.0003863,7]
[314182922,1708050640868,-361.09851034,0.0003863,7]
[314182923,1708050640883,-500.0,0.0003863,7]
[314182924,1708050640892,-702.97,0.0003863,7]
[314182925,1708050640901,-500.0,0.0003863,7]
[314182926,1708050640911,-500.0,0.0003863,7]
[314182927,1708050640920,-570.42069965,0.0003863,7]
[314182928,1708050640929,-500.0,0.0003863,7]
[314182929,1708050640938,-8017.91,0.0003863,7]
[314182930,1708050640948,-1158.9,0.0003863,7]
[314182931,1708050640958,-500.0,0.0003863,7]
[314182932,1708050640969,-153.53778306,0.00038637,2]
[314182933,1708050640978,-150.0,0.0003864,2]
[314182934,1708050640989,-152.0,0.00038678,7]
[314182935,1708050640998,-151.021624,0.00038698,24]
[314182936,1708050641008,-945.0,0.00038701,7]
[314182937,1708050641018,-565.0,0.00038701,7]
[314182938,1708050641028,-728.0,0.00038701,7]
[314182939,1708050641037,-200.0,0.00038701,7]
[314182940,1708050641046,-8745.05875299,0.0003871,12]
[314182941,1708050641055,-151.021624,0.00038798,24]
[314182942,1708050641065,-434.88,0.000388,2]
[314182943,1708050641074,-76010.6031643,0.000388,3]
[314182944,1708050641083,-98998.86752303,0.0003881,3]
[314182945,1708050641093,-76010.6031643,0.0003881,3]
[314182946,1708050641102,-152.0,0.00038815,7]
[314182947,1708050641111,-500.0,0.00038819,7]
[314182948,1708050641120,-8339.23,0.0003882,2]
[314182949,1708050641130,-8339.23,0.0003882,2]
[314182950,1708050641139,-8339.23,0.0003882,2]
[314182951,1708050641148,-8339.23,0.0003882,2]
[314182952,1708050641158,-8339.23,0.0003882,2]
[314182953,1708050641167,-8339.23,0.0003882,2]
[314182954,1708050641176,-8339.23,0.0003882,2]
[314182955,1708050641185,-8339.23,0.0003882,2]
[314182956,1708050641195,-8339.23,0.0003882,2]
[314182957,1708050641204,-8339.23,0.0003882,2]
[314182958,1708050641213,-8339.23,0.0003882,2]
[314182959,1708050641223,-8339.23,0.0003882,2]
[314182960,1708050641232,-8339.23,0.0003882,2]
[314182961,1708050641241,-8339.23,0.0003882,2]
[314182962,1708050641251,-8339.23,0.0003882,2]
[314182963,1708050641261,-8339.26955437,0.0003882,2]
[314182964,1708050641271,-638.22059084,0.00038874,9]
[314182965,1708050641281,-152.42170121,0.0003888,2]
[314182966,1708050641290,-151.06206482,0.0003888,2]
[314182967,1708050641299,-76010.6031643,0.00038884,3]
[314182968,1708050641308,-151.021624,0.00038898,24]
[314182969,1708050641317,-155.0,0.000389,2]
[314182970,1708050641330,-177.38,0.000389,2]
[314182971,1708050641339,-500.0,0.00038904,7]
[314182972,1708050641348,-500.0,0.00038904,7]
[314182973,1708050641357,-500.0,0.00038904,7]
[314182974,1708050641367,-210.03716783,0.00038904,7]
[314182975,1708050641377,-530.6533288,0.00038904,7]
[314182976,1708050641386,-500.0,0.00038904,7]
[314182977,1708050641395,-570.56386932,0.00038904,7]
[314182978,1708050641405,-631.40298891,0.00038904,7]
[314182979,1708050641420,-500.0,0.00038904,7]
[314182980,1708050641429,-414.63228302,0.00038904,7]
[314182981,1708050641439,-530.61682229,0.00038904,7]
[314182982,1708050641450,-529.1455566,0.00038904,7]
[314182983,1708050641460,-535.64257057,0.00038904,7]
[314182984,1708050641470,-519.6906646,0.00038904,7]
[314182985,1708050641480,-500.0,0.00038904,7]
[314182986,1708050641489,-500.0,0.00038904,7]
[314182987,1708050641498,-500.0,0.00038904,7]
[314182988,1708050641508,-500.0,0.00038904,7]
[314182989,1708050641517,-608.02341481,0.00038904,7]
[314182990,1708050641527,-500.0,0.00038904,7]
[314182991,1708050641536,-564.25,0.00038904,7]
[314182992,1708050641546,-500.0,0.00038904,7]
[314182993,1708050641555,-500.0,0.00038904,7]
[314182994,1708050641565,-500.0,0.00038904,7]
[314182995,1708050641574,-595.77,0.00038904,7]
[314182996,1708050641583,-500.0,0.00038904,7]
[314182997,1708050641592,-500.0,0.00038904,7]
[314182998,1708050641602,-500.0,0.00038904,7]
[314182999,1708050641611,-500.0,0.00038904,7]
[314183000,1708050641620,-692.12,0.00038904,7]
[314183001,1708050641630,-500.0,0.00038904,7]
[314183002,1708050641639,-437.96504203,0.00038904,7]
[314183003,1708050641649,-500.0,0.00038904,7]
[314183004,1708050641658,-530.21,0.00038904,7]
[314183005,1708050641667,-500.0,0.00038904,7]
[314183006,1708050641677,-850.98,0.00038904,7]
[314183007,1708050641692,-500.0,0.00038904,7]
[314183008,1708050641707,-500.0,0.00038904,7]
[314183009,1708050641716,-500.0,0.00038904,7]
[314183010,1708050641727,-500.0,0.00038904,7]
[314183011,1708050641736,-642.51,0.00038904,7]
[314183012,1708050641746,-622.60739586,0.00038904,7]
[314183013,1708050641757,-587.32033548,0.00038904,7]
[314183014,1708050641767,-500.0,0.00038904,7]
[314183015,1708050641776,-572.19940751,0.00038904,7]
[314183016,1708050641786,-1866.3,0.00038904,7]
[314183017,1708050641795,-500.0,0.00038904,7]
[314183018,1708050641804,-500.0,0.00038904,7]
[314183019,1708050641814,-500.0,0.00038904,7]
[314183020,1708050641823,-500.0,0.00038904,7]
[314183021,1708050641833,-527.19965329,0.00038904,7]
[314183022,1708050641842,-500.0,0.00038904,7]
[314183023,1708050641851,-500.0,0.00038904,7]
[314183024,1708050641861,-500.0,0.00038904,7]
[314183025,1708050641870,-500.0,0.00038904,7]
[314183026,1708050641879,-604.88209581,0.00038904,7]
[314183027,1708050641890,-500.0,0.00038904,7]
[314183028,1708050641899,-500.0,0.00038904,7]
[314183029,1708050641908,-500.0,0.00038904,7]
[314183030,1708050641917,-583.25,0.00038904,7]
[314183031,1708050641926,-500.0,0.00038904,7]
[314183032,1708050641935,-500.0,0.00038904,7]
[314183033,1708050641944,-500.0,0.00038904,7]
[314183034,1708050641952,-500.0,0.00038904,7]
[314183035,1708050641961,-500.0,0.00038904,7]
[314183036,1708050641972,-500.0,0.00038904,7]
[314183037,1708050641981,-500.0,0.00038904,7]
[314183038,1708050641990,-1327.62,0.00038904,7]
[314183039,1708050642000,-500.0,0.00038904,7]
[314183040,1708050642009,-500.0,0.00038904,7]
[314183041,1708050642019,-601.21442329,0.00038904,7]
[314183042,1708050642028,-500.0,0.00038904,7]
[314183043,1708050642038,-500.0,0.00038904,7]
[314183044,1708050642048,-500.0,0.00038904,7]
[314183045,1708050642057,-500.0,0.00038904,7]
[314183046,1708050642067,-205.39830933,0.00038904,7]
[314183047,1708050642076,-574.46,0.00038904,7]
[314183048,1708050642086,-500.0,0.00038904,7]
[314183049,1708050642095,-279.0878265,0.00038904,7]
[314183050,1708050642104,-521.88,0.00038904,7]
[314183051,1708050642113,-618.85279716,0.00038904,7]
[314183052,1708050642123,-500.0,0.00038904,7]
[314183053,1708050642132,-500.0,0.00038904,7]
[314183054,1708050642141,-500.0,0.00038904,7]
[314183055,1708050642150,-500.0,0.00038904,7]
[314183056,1708050642160,-500.0,0.00038904,7]
[314183057,1708050642169,-678.37,0.00038904,7]
[314183058,1708050642179,-500.0,0.00038904,7]
[314183059,1708050642188,-1540.41,0.00038904,7]
[314183060,1708050642197,-500.0,0.00038904,7]
[314183061,1708050642207,-7593.28,0.00038904,7]
[314183062,1708050642216,-581.92854167,0.00038904,7]
[314183063,1708050642225,-500.0,0.00038904,7]
[314183064,1708050642235,-500.0,0.00038904,7]
[314183065,1708050642244,-500.0,0.00038904,7]
[314183066,1708050642254,-500.0,0.00038904,7]
[314183067,1708050642264,-500.0,0.00038904,7]
[314183068,1708050642273,-500.0,0.00038904,7]
[314183069,1708050642282,-601.07,0.00038904,7]
[314183070,1708050642292,-500.0,0.00038904,7]
[314183071,1708050642301,-583.72,0.00038904,7]
[314183072,1708050642310,-356.34746043,0.00038904,7]
[314183073,1708050642319,-729.85,0.00038904,7]
[314183074,1708050642330,-612.25967779,0.00038904,7]
[314183075,1708050642342,-500.0,0.00038904,7]
[314183076,1708050642351,-500.0,0.00038904,7]
[314183077,1708050642360,-238.13108209,0.00038904,7]
[314183078,1708050642369,-500.0,0.00038904,7]
[314183079,1708050642378,-500.0,0.00038904,7]
[314183080,1708050642388,-309.16666785,0.00038904,7]
[314183081,1708050642397,-702.97,0.00038904,7]
[314183082,1708050642406,-500.0,0.00038904,7]
[314183083,1708050642417,-188.14385199,0.00038904,7]
[314183084,1708050642427,-341.53978919,0.00038904,7]
[314183085,1708050642436,-8017.91,0.00038904,7]
[314183087,1708050642445,-1158.9,0.00038904,7]
[314183088,1708050642455,-500.0,0.00038904,7]
[314183089,1708050642464,-307.76,0.00038931,2]
[314183090,1708050642475,-152.0,0.00038952,7]
[314183091,1708050642485,-154.9644948,0.00038978,2]
[314183092,1708050642494,-178.59218148,0.00038978,12]
[314183093,1708050642504,-151.021624,0.00038998,24]
[314183094,1708050642515,-5000.0,0.00039,7]
[314183095,1708050642524,-153.53778306,0.00039018,2]
[314183096,1708050642533,-945.0,0.00039046,7]
[314183097,1708050642543,-565.0,0.00039046,7]
[314183098,1708050642552,-728.0,0.00039046,7]
[314183099,1708050642561,-200.0,0.00039046,7]
[314183100,1708050642571,-76010.6031643,0.00039058,3]
[314183101,1708050642580,-8745.05875292,0.00039063,12]
[314183102,1708050642589,-152021.206329,0.00039068,3]
[314183103,1708050642599,-1002.7243,0.00039077,2]
[314183104,1708050642608,-500.0,0.00039077,7]
[314183105,1708050642617,-220.86804314,0.00039077,7]
[314183106,1708050642626,-245000.0,0.00039078,2]
[314183107,1708050642635,-3933.0897,0.00039078,7]
[314183108,1708050642792,-152.0,0.00039089,7]
[314183109,1708050642802,-151.021624,0.00039098,24]
[314183110,1708050642811,-218.80061177,0.00039098,2]
[314183111,1708050642821,-151.0,0.00039103,7]
[314183112,1708050642831,-811.32211512,0.00039175,2]
[314183113,1708050642840,-618.72,0.00039176,2]
[314183114,1708050642849,-500.0,0.00039178,7]
[314183115,1708050642858,-231.82343735,0.00039178,7]
[314183116,1708050642867,-500.0,0.00039178,7]
[314183117,1708050642877,-500.0,0.00039178,7]
[314183118,1708050642887,-269.46595323,0.00039178,7]
[314183119,1708050642896,-533.74021359,0.00039178,7]
[314183120,1708050642905,-589.62303244,0.00039178,7]
[314183121,1708050642914,-500.0,0.00039178,7]
[314183122,1708050642924,-500.0,0.00039178,7]
[314183124,1708050642933,-643.50557754,0.00039178,7]
[314183126,1708050642942,-564.25,0.00039178,7]
[314183128,1708050642951,-500.0,0.00039178,7]
[314183130,1708050642960,-205.64156998,0.00039178,7]
[314183132,1708050642970,-500.0,0.00039178,7]
[314183134,1708050642979,-595.77,0.00039178,7]
[314183136,1708050642988,-500.0,0.00039178,7]
[314183138,1708050642998,-500.0,0.00039178,7]
[314183140,1708050643006,-500.0,0.00039178,7]
[314183142,1708050643016,-692.12,0.00039178,7]
[314183144,1708050643024,-210.7725259,0.00039178,7]
[314183146,1708050643034,-500.0,0.00039178,7]
[314183148,1708050643043,-530.21,0.00039178,7]
[314183150,1708050643052,-500.0,0.00039178,7]
[314183151,1708050643061,-850.98,0.00039178,7]
[314183152,1708050643070,-500.0,0.00039178,7]
[314183153,1708050643079,-500.0,0.00039178,7]
[314183154,1708050643088,-500.0,0.00039178,7]
[314183155,1708050643098,-500.0,0.00039178,7]
[314183156,1708050643107,-642.51,0.00039178,7]
[314183157,1708050643116,-347.78050865,0.00039178,7]
[314183158,1708050643126,-1866.3,0.00039178,7]
[314183159,1708050643137,-235.69882664,0.00039178,7]
[314183160,1708050643147,-160.56522104,0.00039178,7]
[314183161,1708050643156,-227.48037839,0.00039178,7]
[314183162,1708050643166,-500.0,0.00039178,7]
[314183163,1708050643176,-597.90648904,0.00039178,7]
[314183164,1708050643185,-500.0,0.00039178,7]
[314183165,1708050643194,-500.0,0.00039178,7]
[314183166,1708050643204,-387.50725965,0.00039178,7]
[314183167,1708050643213,-500.0,0.00039178,7]
[314183168,1708050643222,-500.0,0.00039178,7]
[314183169,1708050643231,-500.0,0.00039178,7]
[314183170,1708050643240,-583.25,0.00039178,7]
[314183171,1708050643251,-500.0,0.00039178,7]
[314183172,1708050643263,-157.44132434,0.00039178,7]
[314183173,1708050643274,-633.03224068,0.00039178,7]
[314183174,1708050643283,-500.0,0.00039178,7]
[314183175,1708050643292,-586.14510254,0.00039178,7]
[314183176,1708050643302,-500.0,0.00039178,7]
[314183177,1708050643311,-331.00135467,0.00039178,7]
[314183178,1708050643320,-1327.62,0.00039178,7]
[314183179,1708050643333,-500.0,0.00039178,7]
[314183180,1708050643342,-584.01366519,0.00039178,7]
[314183181,1708050643351,-500.0,0.00039178,7]
[314183182,1708050643361,-610.77526794,0.00039178,7]
[314183183,1708050643372,-637.19729707,0.00039178,7]
[314183184,1708050643382,-500.0,0.00039178,7]
[314183185,1708050643391,-574.46,0.00039178,7]
[314183186,1708050643401,-500.0,0.00039178,7]
[314183187,1708050643413,-521.88,0.00039178,7]
[314183188,1708050643423,-212.54172551,0.00039178,7]
[314183189,1708050643432,-217.14824301,0.00039178,7]
[314183190,1708050643441,-500.0,0.00039178,7]
[314183191,1708050643450,-590.00176556,0.00039178,7]
[314183192,1708050643461,-580.17828646,0.00039178,7]
[314183193,1708050643471,-678.37,0.00039178,7]
[314183194,1708050643481,-500.0,0.00039178,7]
[314183195,1708050643490,-1540.41,0.00039178,7]
[314183196,1708050643500,-500.0,0.00039178,7]
[314183197,1708050643510,-7593.28,0.00039178,7]
[314183198,1708050643520,-500.0,0.00039178,7]
[314183199,1708050643529,-500.0,0.00039178,7]
[314183200,1708050643539,-513.83439317,0.00039178,7]
[314183201,1708050643548,-229.31025086,0.00039178,7]
[314183202,1708050643558,-500.0,0.00039178,7]
[314183203,1708050643567,-449.54270072,0.00039178,7]
[314183204,1708050643577,-601.07,0.00039178,7]
[314183205,1708050643597,-500.0,0.00039178,7]
[314183206,1708050643630,-583.72,0.00039178,7]
[314183207,1708050643640,-729.85,0.00039178,7]
[314183208,1708050643649,-499.24852528,0.00039178,7]
[314183209,1708050643658,-500.0,0.00039178,7]
[314183210,1708050643668,-500.0,0.00039178,7]
[314183211,1708050643677,-545.18535255,0.00039178,7]
[314183212,1708050643686,-702.97,0.00039178,7]
[314183213,1708050643695,-193.30826437,0.00039178,7]
[314183214,1708050643705,-8017.91,0.00039178,7]
[314183215,1708050643714,-1158.9,0.00039178,7]
[314183216,1708050643723,-500.0,0.00039178,7]
[314183217,1708050643732,-151.021624,0.00039198,25]
[314183218,1708050643741,-152.0,0.00039226,7]
[314183219,1708050643751,-151.021624,0.00039248,24]
[314183220,1708050643760,-567.58661431,0.00039255,2]
[314183221,1708050643769,-1222.98041014,0.00039255,2]
[314183222,1708050643778,-267.21,0.0003926,2]
[314183223,1708050643787,-151.021624,0.00039298,25]
[314183224,1708050643797,-151.021624,0.00039348,25]
[314183225,1708050643806,-263.96651938,0.00039348,2]
[314183226,1708050643815,-1970.25407898,0.00039352,2]
[314183227,1708050643825,-711.496,0.00039355,2]
[314183228,1708050643834,-1231.0,0.00039355,2]
[314183229,1708050643843,-216.0,0.00039355,2]
[314183230,1708050643852,-1254.0,0.00039355,2]
[314183231,1708050643861,-858.0,0.00039355,2]
[314183232,1708050643870,-429.0,0.00039355,2]
[314183233,1708050643878,-237.0,0.00039355,2]
[314183234,1708050643888,-150.0,0.00039355,2]
[314183235,1708050643897,-343.0,0.00039355,2]
[314183236,1708050643906,-321.0,0.00039355,2]
[314183237,1708050643915,-793.133,0.00039355,2]
[314183238,1708050643924,-454.0,0.00039355,2]
[314183239,1708050643933,-150.0,0.00039355,2]
[314183240,1708050643942,-8164.0,0.00039355,2]
[314183241,1708050643951,-189.445,0.00039355,2]
[314183242,1708050643960,-2927.0,0.00039355,2]
[314183243,1708050643969,-246.98,0.00039355,2]
[314183244,1708050643978,-2289.0,0.00039355,2]
[314183245,1708050643987,-19846.0,0.00039355,2]
[314183246,1708050643996,-3126.329,0.00039355,2]
[314183247,1708050644005,-2835.0,0.00039355,2]
[314183248,1708050644015,-1037.0,0.00039355,2]
[314183249,1708050644024,-842.0,0.00039355,2]
[314183250,1708050644033,-953.0,0.00039355,2]
[314183251,1708050644042,-152.0,0.00039363,7]
[314183252,1708050644051,-945.0,0.00039392,7]
[314183253,1708050644060,-565.0,0.00039392,7]
[314183254,1708050644069,-728.0,0.00039392,7]
[314183255,1708050644078,-200.0,0.00039392,7]
[314183256,1708050644087,-151.021624,0.00039398,25]
[314183257,1708050644096,-153.53778306,0.00039399,2]
[314183258,1708050644105,-200.0,0.00039399,15]
[314183259,1708050644114,-8745.05875292,0.00039415,13]
[314183260,1708050644123,-151.021624,0.00039448,25]
[314183261,1708050644131,-188.13347713,0.00039448,2]
[314183262,1708050644141,-507.7576959,0.00039451,7]
[314183263,1708050644149,-500.0,0.00039452,7]
[314183264,1708050644159,-500.0,0.00039452,7]
[314183265,1708050644168,-203.63670306,0.00039452,7]
[314183266,1708050644177,-500.0,0.00039452,7]
[314183267,1708050644186,-500.0,0.00039452,7]
[314183268,1708050644195,-564.25,0.00039452,7]
[314183269,1708050644204,-500.0,0.00039452,7]
[314183270,1708050644213,-500.0,0.00039452,7]
[314183271,1708050644222,-595.77,0.00039452,7]
[314183272,1708050644231,-500.0,0.00039452,7]
[314183273,1708050644241,-647.76658355,0.00039452,7]
[314183274,1708050644250,-500.0,0.00039452,7]
[314183275,1708050644258,-692.12,0.00039452,7]
[314183276,1708050644268,-500.0,0.00039452,7]
[314183277,1708050644277,-530.21,0.00039452,7]
[314183278,1708050644286,-500.0,0.00039452,7]
[314183279,1708050644295,-850.98,0.00039452,7]
[314183280,1708050644304,-152.05369087,0.00039452,7]
[314183281,1708050644314,-500.0,0.00039452,7]
[314183282,1708050644324,-384.62577617,0.00039452,7]
[314183283,1708050644336,-500.0,0.00039452,7]
[314183284,1708050644345,-642.51,0.00039452,7]
[314183285,1708050644354,-1866.3,0.00039452,7]
[314183286,1708050644363,-557.37522575,0.00039452,7]
[314183287,1708050644372,-500.0,0.00039452,7]
[314183288,1708050644383,-500.0,0.00039452,7]
[314183289,1708050644392,-500.0,0.00039452,7]
[314183290,1708050644401,-500.0,0.00039452,7]
[314183291,1708050644412,-158.14065158,0.00039452,7]
[314183292,1708050644422,-583.25,0.00039452,7]
[314183293,1708050644431,-500.0,0.00039452,7]
[314183294,1708050644440,-500.0,0.00039452,7]
[314183295,1708050644449,-500.0,0.00039452,7]
[314183296,1708050644459,-1327.62,0.00039452,7]
[314183297,1708050644468,-648.53772077,0.00039452,7]
[314183298,1708050644477,-609.64884994,0.00039452,7]
[314183299,1708050644487,-500.0,0.00039452,7]
[314183300,1708050644496,-574.46,0.00039452,7]
[314183301,1708050644506,-500.0,0.00039452,7]
[314183302,1708050644516,-521.88,0.00039452,7]
[314183303,1708050644525,-248.06856746,0.00039452,7]
[314183304,1708050644535,-678.37,0.00039452,7]
[314183305,1708050644544,-301.94256089,0.00039452,7]
[314183306,1708050644553,-1540.41,0.00039452,7]
[314183307,1708050644563,-500.0,0.00039452,7]
[314183308,1708050644572,-7593.28,0.00039452,7]
[314183309,1708050644581,-500.0,0.00039452,7]
[314183310,1708050644590,-500.0,0.00039452,7]
[314183311,1708050644599,-600.04986269,0.00039452,7]
[314183312,1708050644608,-601.07,0.00039452,7]
[314183313,1708050644617,-500.0,0.00039452,7]
[314183314,1708050644626,-583.72,0.00039452,7]
[314183315,1708050644635,-729.85,0.00039452,7]
[314183316,1708050644644,-500.0,0.00039452,7]
[314183317,1708050644653,-487.96607391,0.00039452,7]
[314183318,1708050644663,-702.97,0.00039452,7]
[314183319,1708050644672,-8017.91,0.00039452,7]
[314183320,1708050644683,-1158.9,0.00039452,7]
[314183321,1708050644693,-500.0,0.00039452,7]
[314183322,1708050644702,-288.092847,0.00039452,14]
[314183323,1708050644711,-5000.0,0.0003948,7]
[314183324,1708050644720,-1510.8137,0.00039483,7]
[314183325,1708050644730,-158.76536105,0.00039483,7]
[314183326,1708050644740,-151.0,0.00039483,30]
[314183327,1708050644750,-53482.41611465,0.00039483,30]
[314183328,1708050644759,-200.871481,0.00039483,30]
[314183329,1708050644770,-82162.79313423,0.00039483,60]
[314183330,1708050644780,-638.22059084,0.00039494,9]
[314183331,1708050644789,-151.021624,0.00039498,24]
[314183332,1708050644798,-152.0,0.000395,7]
[314183333,1708050644808,-1000.0,0.000395,2]
[314183334,1708050644817,-16655.36334903,0.000395,5]
[314183335,1708050644827,-1383.45234104,0.00039506,2]
[314183336,1708050644836,-151.021624,0.00039548,25]
[314183337,1708050644845,-151.021624,0.00039598,24]
[314183338,1708050644854,-1356.96865491,0.00039599,2]
[314183339,1708050644863,-167.97,0.0003963,2]
[314183340,1708050644872,-152.0,0.00039637,7]
[314183341,1708050644881,-151.021624,0.00039648,25]
[314183342,1708050644892,-151.021624,0.00039698,24]
[314183343,1708050644901,-301.90055941,0.000397,2]
[314183344,1708050644910,-455.79,0.000397,3]
[314183345,1708050644919,-455.79,0.000397,3]
[314183346,1708050644928,-455.79,0.000397,3]
[314183347,1708050644937,-455.79,0.000397,3]
[314183348,1708050644946,-455.79,0.000397,3]
[314183349,1708050644955,-455.79,0.000397,3]
[314183350,1708050644964,-455.79,0.000397,3]
[314183351,1708050644973,-455.79,0.000397,3]
[314183352,1708050644982,-455.79,0.000397,3]
[314183353,1708050644991,-455.79,0.000397,3]
[314183354,1708050645001,-455.79,0.000397,3]
[314183355,1708050645011,-455.79,0.000397,3]
[314183356,1708050645021,-455.79,0.000397,3]
[314183357,1708050645030,-455.79,0.000397,3]
[314183358,1708050645039,-455.79,0.000397,3]
[314183359,1708050645048,-455.79,0.000397,3]
[314183360,1708050645057,-455.79,0.000397,3]
[314183361,1708050645066,-455.79,0.000397,3]
[314183362,1708050645075,-455.79,0.000397,3]
[314183363,1708050645084,-455.79,0.000397,3]
[314183364,1708050645093,-500.0,0.00039726,7]